bitfinex/quotes_BTCUSD_20230118
["timestamp","ask_amount","ask_price","bid_price","bid_amount"]
[1674011088675,0.00091271,21290.0,21287.0,0.470765]
[1674011089167,0.15091271,21290.0,21287.0,0.470765]
[1674011089985,0.15091271,21290.0,21287.0,0.2208635]
[1674011090236,0.00091271,21290.0,21287.0,0.2208635]
[1674011090496,0.00091271,21290.0,21287.0,0.2198635]
[1674011090806,0.19691271,21290.0,21287.0,0.2208635]
[1674011091092,1.13632171,21290.0,21287.0,0.001]
[1674011091363,0.321686,21289.0,21287.0,0.001]
[1674011091611,0.469728,21289.0,21287.0,0.001]
[1674011093181,0.469728,21289.0,21285.0,0.469798]
[1674011093461,0.469728,21289.0,21284.0,0.469818]
[1674011093708,0.939454,21289.0,21284.0,0.469818]
[1674011094144,0.944454,21289.0,21284.0,0.66054395]
[1674011094145,0.939454,21289.0,21284.0,0.66054395]
[1674011094408,0.947454,21289.0,21285.0,0.009]
[1674011094685,0.939454,21289.0,21285.0,0.19072595]
[1674011094951,0.008,21289.0,21287.0,0.15]
[1674011095260,0.01054907,21291.0,21288.0,0.268755]
[1674011095467,0.01054907,21291.0,21288.0,0.55342395]
[1674011095730,0.01054907,21291.0,21288.0,0.19072595]
[1674011096010,0.01054907,21291.0,21288.0,0.66047195]
[1674011096279,0.009,21289.0,21288.0,0.469746]
[1674011096531,0.009,21289.0,21288.0,0.470746]
[1674011096787,0.009,21289.0,21288.0,1.571944]
[1674011097045,0.01054907,21291.0,21288.0,1.720944]
[1674011097298,0.01554907,21291.0,21289.0,0.631437]
[1674011097555,0.01554907,21291.0,21290.0,1.358132]
[1674011097816,0.01554907,21291.0,21290.0,1.72083]
[1674011098072,0.01054907,21291.0,21290.0,1.72083]
[1674011098349,0.01854907,21291.0,21290.0,1.72083]
[1674011098638,0.01854907,21291.0,21290.0,1.57083]
[1674011098908,0.01854907,21291.0,21290.0,1.208132]
[1674011099210,0.01854907,21291.0,21290.0,1.57083]
[1674011099478,0.02754907,21291.0,21290.0,1.57983]
[1674011099742,0.01054907,21291.0,21290.0,1.57083]
[1674011099999,0.01854907,21291.0,21290.0,1.57983]
[1674011100250,0.01854907,21291.0,21290.0,1.58054738]
[1674011100542,0.01854907,21291.0,21290.0,1.21784938]
[1674011101054,0.01854907,21291.0,21290.0,1.58054738]
[1674011102117,0.01854907,21291.0,21290.0,1.21784938]
[1674011103019,0.01954464,21291.0,21290.0,1.21784938]
[1674011103501,0.01854907,21291.0,21290.0,1.21778058]
[1674011105340,0.01854907,21291.0,21290.0,1.2170632]
[1674011107361,0.01946178,21291.0,21290.0,1.2170632]
[1674011107650,0.01854907,21291.0,21290.0,1.2170632]
[1674011108719,0.01854907,21291.0,21290.0,1.21846149]
[1674011109255,0.01854907,21291.0,21290.0,1.2170632]
[1674011111020,0.01946178,21291.0,21290.0,0.009]
[1674011112804,0.01854907,21291.0,21290.0,0.009]
[1674011113065,0.01854907,21291.0,21290.0,0.74608764]
[1674011113337,0.01854907,21291.0,21290.0,1.69426669]
[1674011113654,0.01854907,21291.0,21290.0,2.05696469]
[1674011114092,0.01854907,21291.0,21290.0,2.05703459]
[1674011114387,0.01854907,21291.0,21290.0,2.35703459]
[1674011115136,0.01854907,21291.0,21290.0,2.82673859]
[1674011115643,0.01854907,21291.0,21290.0,2.82643398]
[1674011115907,0.01854907,21291.0,21290.0,2.52643398]
[1674011116696,0.01854907,21291.0,21290.0,2.16493155]
[1674011118471,0.01854907,21291.0,21290.0,2.46493155]
[1674011118767,0.01854907,21291.0,21290.0,2.82762955]
[1674011120079,0.01854907,21291.0,21290.0,2.52762955]
[1674011120262,0.01854907,21291.0,21290.0,2.82762955]
[1674011120525,0.01854907,21291.0,21290.0,2.52762955]
[1674011121557,0.01854907,21291.0,21290.0,2.16493155]
[1674011121820,0.01946178,21291.0,21290.0,1.69396208]
[1674011122090,0.01854907,21291.0,21290.0,1.69396208]
[1674011123081,0.01854907,21291.0,21290.0,1.69409175]
[1674011124149,0.01854907,21291.0,21290.0,1.69396208]
[1674011125251,0.01854907,21291.0,21290.0,0.27735239]
[1674011125515,0.01854907,21291.0,21290.0,0.00869539]
[1674011126064,0.01054907,21291.0,21289.0,0.469726]
[1674011126329,0.01854907,21291.0,21290.0,0.008]
[1674011126798,0.01854907,21291.0,21290.0,0.268657]
[1674011126799,0.02654907,21291.0,21290.0,0.276657]
[1674011127065,0.01146178,21291.0,21289.0,0.93961446]
[1674011127315,0.01854907,21291.0,21289.0,0.94761446]
[1674011127570,0.01054907,21291.0,21290.0,0.268657]
[1674011127828,0.01854907,21291.0,21290.0,0.746361]
[1674011128599,0.01854907,21291.0,21290.0,1.366065]
[1674011128882,0.01054907,21291.0,21290.0,1.208065]
[1674011129161,0.01854907,21291.0,21290.0,1.208065]
[1674011129438,0.01854907,21291.0,21290.0,1.216065]
[1674011129439,0.02746178,21291.0,21290.0,1.216065]
[1674011129699,0.02654907,21291.0,21290.0,1.216065]
[1674011130550,0.02746178,21291.0,21290.0,0.276657]
[1674011130814,0.02746178,21291.0,21290.0,0.008]
[1674011132938,0.02654907,21291.0,21290.0,0.07716]
[1674011133244,0.02654907,21291.0,21290.0,0.345817]
[1674011133502,0.02654907,21291.0,21290.0,0.815521]
[1674011133765,0.02654907,21291.0,21290.0,2.12512469]
[1674011134063,0.02654907,21291.0,21290.0,1.76299704]
[1674011135417,0.02654907,21291.0,21290.0,1.54600528]
[1674011135683,0.02654907,21291.0,21290.0,1.41841955]
[1674011136793,0.02654907,21291.0,21290.0,1.2678492]
[1674011139377,0.02654907,21291.0,21290.0,1.4178492]
[1674011139630,0.02654907,21291.0,21290.0,1.2678492]
[1674011142192,0.02654907,21291.0,21290.0,1.4178492]
[1674011142479,0.02654907,21291.0,21290.0,1.2678492]
[1674011143467,0.02654907,21291.0,21290.0,2.07818388]
[1674011143720,0.02654907,21291.0,21290.0,1.2678492]
[1674011144210,0.02746178,21291.0,21290.0,1.2678492]
[1674011144483,0.02654907,21291.0,21290.0,1.2678492]
[1674011145482,0.02654907,21291.0,21290.0,1.5678492]
[1674011145758,0.02654907,21291.0,21290.0,1.92818388]
[1674011146335,0.02654907,21291.0,21290.0,2.03976862]
[1674011146763,0.02654907,21291.0,21290.0,1.62818388]
[1674011147011,0.02654907,21291.0,21290.0,1.83242019]
[1674011147532,0.02654907,21291.0,21290.0,1.94400493]
[1674011147763,0.02654907,21291.0,21290.0,1.83242019]
[1674011148528,0.02654907,21291.0,21290.0,1.94400493]
[1674011148785,0.02654907,21291.0,21290.0,1.02208551]
[1674011149271,0.02654907,21291.0,21290.0,1.47208551]
[1674011149777,0.02654907,21291.0,21290.0,1.02122907]
[1674011150824,0.02654907,21291.0,21290.0,1.02208551]
[1674011151091,0.02654907,21291.0,21290.0,1.02122907]
[1674011153049,0.02746178,21291.0,21290.0,1.02122907]
[1674011153314,0.02654907,21291.0,21290.0,1.02122907]
[1674011154606,0.02654907,21291.0,21290.0,0.07432338]
[1674011154861,0.02746178,21291.0,21290.0,0.07432338]
[1674011155636,0.02654907,21291.0,21290.0,0.07432338]
[1674011156170,0.02746178,21291.0,21290.0,0.07432338]
[1674011156434,0.02654907,21291.0,21290.0,0.07432338]
[1674011157215,0.02746178,21291.0,21289.0,0.469704]
[1674011158040,0.02654907,21291.0,21289.0,0.469704]
[1674011158246,0.01054907,21291.0,21289.0,1.13015595]
[1674011158500,0.01054907,21291.0,21289.0,0.94043]
[1674011158501,0.01954907,21291.0,21289.0,0.94043]
[1674011162052,0.02046178,21291.0,21289.0,0.94043]
[1674011164410,0.02046178,21291.0,21289.0,0.470726]
[1674011164674,0.02046178,21291.0,21289.0,0.001]
[1674011165449,0.01146178,21291.0,21288.0,0.469727]
[1674011165790,0.13261541,21291.0,21289.0,0.001]
[1674011165970,0.02046178,21291.0,21289.0,0.001]
[1674011166233,0.13261541,21291.0,21289.0,0.001]
[1674011166766,0.02046178,21291.0,21289.0,0.001]
[1674011167035,0.13261541,21291.0,21289.0,0.001]
[1674011167266,0.12361541,21291.0,21288.0,0.469727]
[1674011167535,0.13361541,21291.0,21289.0,0.001]
[1674011167785,0.12361541,21291.0,21288.0,0.469727]
[1674011168059,0.13261541,21291.0,21289.0,0.001]
[1674011168326,0.01146178,21291.0,21288.0,0.469727]
[1674011168576,0.13361541,21291.0,21289.0,0.001]
[1674011168840,0.02146178,21291.0,21288.0,0.469727]
[1674011169361,0.03046178,21291.0,21288.0,0.470727]
[1674011169582,0.48114378,21291.0,21287.0,0.469752]
[1674011169868,0.60229741,21291.0,21289.0,0.001]
[1674011170391,0.321667,21290.0,21289.0,0.001]
[1674011170657,0.51644777,21290.0,21289.0,0.001]
[1674011170923,0.51644777,21290.0,21288.0,0.001]
[1674011170924,2.14967461,21290.0,21288.0,0.001]
[1674011171178,8.493e-05,21288.0,21283.0,0.469858]
[1674011171457,0.791448,21287.0,21282.0,0.469862]
[1674011171694,0.469781,21287.0,21282.0,0.939725]
[1674011172486,0.519781,21287.0,21282.0,0.939725]
[1674011172740,0.519781,21287.0,21282.0,1.13045095]
[1674011173788,0.64330738,21287.0,21282.0,1.13045095]
[1674011174048,0.15,21286.0,21282.0,1.13045095]
[1674011174310,0.15,21286.0,21282.0,0.939725]
[1674011174574,1.11308538,21287.0,21282.0,0.939725]
[1674011174820,1.11308538,21287.0,21282.0,1.13045095]
[1674011174821,1.26308538,21287.0,21282.0,1.13045095]
[1674011175361,1.21308538,21287.0,21282.0,1.13045095]
[1674011175604,0.005,21286.0,21282.0,1.13045095]
[1674011175866,0.00091271,21285.0,21282.0,0.939725]
[1674011176136,1.11308538,21287.0,21282.0,0.939725]
[1674011176388,0.64331538,21287.0,21285.0,0.00011422]
[1674011176679,0.519789,21287.0,21285.0,0.00011422]
[1674011176907,0.32257971,21286.0,21285.0,0.00011422]
[1674011177671,0.47257971,21286.0,21285.0,0.00011422]
[1674011178431,0.41257971,21286.0,21285.0,0.00011422]
[1674011178781,0.56257971,21286.0,21285.0,0.00011422]
[1674011179046,0.41257971,21286.0,21285.0,0.00011422]
[1674011179315,0.09091271,21286.0,21285.0,0.00011422]
[1674011180814,0.411667,21286.0,21285.0,0.00011422]
[1674011181071,0.09,21286.0,21285.0,0.46992822]
[1674011181379,0.08989608,21286.0,21285.0,0.46992822]
[1674011182667,0.08989608,21286.0,21285.0,0.46792822]
[1674011183461,0.08989608,21286.0,21285.0,0.93781214]
[1674011185607,0.08989608,21286.0,21285.0,0.93774222]
[1674011189147,0.08989608,21286.0,21285.0,0.93781214]
[1674011189675,8.493e-05,21288.0,21285.0,0.93781214]
[1674011189927,0.008,21286.0,21285.0,1.3078097]
[1674011190179,0.008,21286.0,21285.0,1.23781214]
[1674011190440,8.493e-05,21288.0,21286.0,0.15]
[1674011190942,8.493e-05,21288.0,21287.0,0.93954]
[1674011192561,0.00808493,21288.0,21287.0,0.94854]
[1674011194603,0.00808493,21288.0,21287.0,1.30953756]
[1674011194889,0.00808493,21288.0,21287.0,0.94854]
[1674011195150,0.00899764,21288.0,21287.0,0.94854]
[1674011195414,0.00808493,21288.0,21287.0,0.009]
[1674011195970,0.00899764,21288.0,21287.0,0.009]
[1674011197283,0.33066464,21288.0,21287.0,0.009]
[1674011198947,0.95041264,21288.0,21287.0,0.009]
[1674011199459,0.93508102,21288.0,21287.0,0.009]
[1674011199708,1.08508102,21288.0,21287.0,0.009]
[1674011199971,0.94941264,21288.0,21287.0,0.009]
[1674011200248,0.94941264,21288.0,21287.0,0.00889914]
[1674011200486,1.26916064,21288.0,21287.0,0.00889914]
[1674011201262,0.79941264,21288.0,21287.0,0.00889914]
[1674011201494,0.79232771,21288.0,21283.0,0.83083756]
[1674011201747,0.321667,21287.0,21283.0,0.46984]
[1674011202019,0.55266071,21288.0,21287.0,0.001]
[1674011202269,0.47066071,21288.0,21283.0,0.83083756]
[1674011202529,0.55266071,21288.0,21287.0,0.001]
[1674011202823,0.79232771,21288.0,21283.0,1.49140051]
[1674011203058,0.47066071,21288.0,21283.0,0.939677]
[1674011203334,0.47066071,21288.0,21283.0,1.13040295]
[1674011204188,0.47966071,21288.0,21283.0,1.13940295]
[1674011204702,0.009,21288.0,21284.0,0.19072595]
[1674011204958,0.009,21288.0,21285.0,0.46981]
[1674011206093,0.4523,21290.0,21285.0,1.49134751]
[1674011206365,0.01054907,21291.0,21286.0,0.55172351]
[1674011206675,0.01054907,21291.0,21287.0,2.4382022]
[1674011206939,0.01054907,21291.0,21288.0,0.47720169]
[1674011207194,0.01054907,21291.0,21289.0,0.939452]
[1674011207448,0.09354907,21291.0,21289.0,0.939452]
[1674011207713,0.01054907,21291.0,21289.0,0.939452]
[1674011207972,0.09354907,21291.0,21289.0,1.30044956]
[1674011208225,0.09354907,21291.0,21289.0,1.77765125]
[1674011208479,0.09354907,21291.0,21290.0,0.51099756]
[1674011208733,0.09354907,21291.0,21290.0,1.45040556]
[1674011209088,0.01054907,21291.0,21290.0,1.45040556]
[1674011209822,0.01954907,21291.0,21290.0,1.45040556]
[1674011210095,0.01054907,21291.0,21290.0,1.92760725]
[1674011210358,0.01854907,21291.0,21290.0,2.23660725]
[1674011211160,0.01054907,21291.0,21290.0,2.22767715]
[1674011211419,0.01854907,21291.0,21290.0,2.22767715]
[1674011211916,0.01054907,21291.0,21290.0,2.22767715]
[1674011211919,0.01854907,21291.0,21290.0,2.23667715]
[1674011212709,0.01054907,21291.0,21290.0,2.22767715]
[1674011212982,0.01054907,21291.0,21290.0,1.77767715]
[1674011213254,0.01854907,21291.0,21290.0,1.78667715]
[1674011213503,0.01854907,21291.0,21290.0,2.08667715]
[1674011215883,0.01854907,21291.0,21290.0,2.23237715]
[1674011219505,0.01034943,21292.0,21291.0,2.30341052]
[1674011220187,0.01054907,21294.0,21292.0,0.15]
[1674011220461,0.01054907,21294.0,21293.0,2.87094725]
[1674011220721,0.01054907,21294.0,21293.0,3.17094725]
[1674011220978,4.907e-05,21294.0,21293.0,3.17094725]
[1674011221205,0.01107438,21295.0,21294.0,0.15]
[1674011221460,0.01107438,21295.0,21294.0,2.23592925]
[1674011223294,0.01107438,21295.0,21294.0,2.23599914]
[1674011223564,0.01107438,21295.0,21294.0,2.08599914]
[1674011223806,0.01107438,21295.0,21294.0,2.17899914]
[1674011225462,0.01107438,21295.0,21294.0,2.08599914]
[1674011225738,0.01107438,21295.0,21294.0,2.17799914]
[1674011225997,0.01107438,21295.0,21294.0,2.08599914]
[1674011226246,0.01107438,21295.0,21294.0,2.17799914]
[1674011227615,0.01107438,21295.0,21294.0,2.08599914]
[1674011227893,0.01107438,21295.0,21294.0,1.86949914]
[1674011228171,0.01107438,21295.0,21294.0,1.50850158]
[1674011229779,0.01107438,21295.0,21294.0,1.50843169]
[1674011230288,0.01107438,21295.0,21294.0,1.41643169]
[1674011230297,0.01207438,21295.0,21294.0,1.50143169]
[1674011230593,0.01107438,21295.0,21294.0,1.77742925]
[1674011230849,0.01207438,21295.0,21294.0,1.86242925]
[1674011231111,0.01207438,21295.0,21294.0,1.77742925]
[1674011231414,0.01207438,21295.0,21294.0,2.16242925]
[1674011231627,0.01207438,21295.0,21294.0,2.07742925]
[1674011231890,0.01207438,21295.0,21294.0,2.16242925]
[1674011231891,0.01307438,21295.0,21294.0,2.16242925]
[1674011232153,0.01107438,21295.0,21294.0,2.07742925]
[1674011232402,0.01207438,21295.0,21294.0,2.08155994]
[1674011233235,0.01107438,21295.0,21294.0,1.99655994]
[1674011233530,0.01207438,21295.0,21294.0,2.08162983]
[1674011233792,0.01207438,21295.0,21294.0,1.99662983]
[1674011234347,0.01307438,21295.0,21294.0,2.08162983]
[1674011234863,0.01107438,21295.0,21294.0,1.99662983]
[1674011235446,0.01207438,21295.0,21294.0,2.08162983]
[1674011236301,0.01054907,21296.0,21295.0,0.01516212]
[1674011236527,0.01147228,21297.0,21295.0,1.94309171]
[1674011236753,0.01064278,21299.0,21296.0,1.94262559]
[1674011236976,0.01064278,21299.0,21298.0,0.62290169]
[1674011237196,0.01064278,21299.0,21298.0,3.36177754]
[1674011237415,0.01064278,21299.0,21298.0,3.17105159]
[1674011238123,0.01164278,21299.0,21298.0,3.29109592]
[1674011238329,0.01164278,21299.0,21298.0,3.20509592]
[1674011238330,0.01064278,21299.0,21298.0,3.20509592]
[1674011238554,0.01164278,21299.0,21298.0,3.29109592]
[1674011238787,0.01211921,21303.0,21300.0,0.00880793]
[1674011239005,0.01211921,21303.0,21301.0,2.35504569]
[1674011239240,0.01211921,21303.0,21302.0,1.28874359]
[1674011239438,0.01303192,21303.0,21302.0,1.41607969]
[1674011239681,0.01303192,21303.0,21302.0,0.938878]
[1674011239682,0.01211921,21303.0,21302.0,0.938878]
[1674011240346,0.01111921,21303.0,21302.0,0.938878]
[1674011240905,0.01111921,21303.0,21302.0,1.50307969]
[1674011241171,0.01111921,21303.0,21302.0,2.63406059]
[1674011241431,0.01111921,21303.0,21302.0,2.54706059]
[1674011241692,0.01111921,21303.0,21302.0,2.55556059]
[1674011242561,0.01111921,21303.0,21302.0,2.64256059]
[1674011242811,0.01111921,21303.0,21302.0,2.55556059]
[1674011243068,0.01111921,21303.0,21302.0,2.64256059]
[1674011243631,0.01111921,21303.0,21302.0,2.55556059]
[1674011243904,0.01111921,21303.0,21302.0,2.63406059]
[1674011244190,0.01111921,21303.0,21302.0,2.55556059]
[1674011245234,0.01111921,21303.0,21302.0,2.78806059]
[1674011245492,0.01111921,21303.0,21302.0,2.70106059]
[1674011245769,0.01111921,21303.0,21302.0,2.78806059]
[1674011246003,0.01111921,21303.0,21302.0,2.70106059]
[1674011246245,0.01111921,21303.0,21302.0,2.78806059]
[1674011246507,0.01111921,21303.0,21302.0,2.70106059]
[1674011246776,0.01111921,21303.0,21302.0,2.78806059]
[1674011247109,0.01111921,21303.0,21302.0,2.70106059]
[1674011247383,0.01179551,21304.0,21303.0,0.01404078]
[1674011247632,0.00434554,21304.0,21303.0,1.02239437]
[1674011247880,0.4441593,21312.0,21303.0,2.26122837]
[1674011248132,0.4441593,21312.0,21305.0,0.62290169]
[1674011248389,0.4441593,21312.0,21307.0,1.877308]
[1674011248664,0.4441593,21312.0,21308.0,1.32946954]
[1674011248914,0.4441593,21312.0,21309.0,2.24658359]
[1674011249173,0.4441593,21312.0,21310.0,0.47720169]
[1674011249443,0.0138593,21312.0,21311.0,1.407723]
[1674011249753,0.0138593,21312.0,21311.0,0.938482]
[1674011249983,0.0138593,21312.0,21309.0,0.469285]
[1674011250233,0.0138593,21312.0,21309.0,0.938553]
[1674011250500,0.0138593,21312.0,21310.0,0.092]
[1674011251318,0.0138593,21312.0,21308.0,0.469286]
[1674011251830,0.32257971,21311.0,21310.0,0.092]
[1674011252089,0.32257971,21311.0,21308.0,0.469286]
[1674011252378,0.0138593,21312.0,21309.0,0.469279]
[1674011252877,0.0138593,21312.0,21310.0,0.093]
[1674011253144,0.0138593,21312.0,21311.0,0.47720169]
[1674011253414,0.0138593,21312.0,21311.0,1.41568369]
[1674011253669,0.0138593,21312.0,21311.0,0.938482]
[1674011254702,0.0138593,21312.0,21311.0,1.030482]
[1674011256813,0.0138593,21312.0,21311.0,0.938482]
[1674011257355,0.0088593,21312.0,21311.0,0.938482]
[1674011257813,0.0088593,21312.0,21311.0,1.030482]
[1674011258077,0.0088593,21312.0,21311.0,0.938482]
[1674011258594,0.0088593,21312.0,21311.0,1.3920239]
[1674011258880,0.0088593,21312.0,21311.0,2.16922559]
[1674011259660,0.0088593,21312.0,21311.0,2.07722559]
[1674011260685,0.0088593,21312.0,21311.0,2.16922559]
[1674011261502,0.0088593,21312.0,21311.0,2.63846659]
[1674011261744,0.0088593,21312.0,21311.0,2.73046659]
[1674011262250,0.0088593,21312.0,21311.0,2.54646659]
[1674011262511,0.0088593,21312.0,21311.0,2.63846659]
[1674011262795,0.0088593,21312.0,21311.0,2.79266659]
[1674011262796,9.3e-06,21312.0,21311.0,2.79266659]
[1674011263561,9.3e-06,21312.0,21311.0,2.88466659]
[1674011263821,0.01419582,21316.0,21312.0,5.07e-05]
[1674011264120,0.01419582,21316.0,21313.0,2.49966969]
[1674011264375,0.01419582,21316.0,21314.0,1.13874359]
[1674011264636,0.01419582,21316.0,21315.0,0.47720169]
[1674011264890,0.01419582,21316.0,21315.0,1.407459]
[1674011266188,0.01419582,21316.0,21315.0,1.499459]
[1674011266449,0.01419582,21316.0,21315.0,1.030306]
[1674011267003,0.01419582,21316.0,21315.0,0.092]
[1674011267520,0.33585282,21316.0,21315.0,0.092]
[1674011267755,0.01419582,21316.0,21315.0,0.092]
[1674011268565,1.27511482,21316.0,21315.0,0.084]
[1674011268834,1.27511482,21316.0,21312.0,5.07e-05]
[1674011268835,1.27411482,21316.0,21312.0,5.07e-05]
[1674011269129,1.27411482,21316.0,21312.0,0.65999565]
[1674011269130,0.321657,21315.0,21312.0,0.65999565]
[1674011269383,0.01519582,21316.0,21312.0,0.9384887]
[1674011269610,0.01619582,21316.0,21315.0,0.085]
[1674011269863,0.01419582,21316.0,21313.0,0.3615419]
[1674011270121,0.01519582,21316.0,21313.0,0.938376]
[1674011271152,0.01419582,21316.0,21313.0,0.938376]
[1674011271414,0.01519582,21316.0,21313.0,0.938376]
[1674011271675,0.01419582,21316.0,21313.0,0.938376]
[1674011271960,0.01419582,21316.0,21313.0,1.49957769]
[1674011271961,0.01519582,21316.0,21313.0,1.49957769]
[1674011272200,0.01519582,21316.0,21314.0,0.3615419]
[1674011272447,0.01519582,21316.0,21315.0,1.407459]
[1674011273991,0.01419582,21316.0,21315.0,1.407459]
[1674011274249,0.01419582,21316.0,21315.0,1.492459]
[1674011274250,0.01519582,21316.0,21315.0,1.492459]
[1674011274793,0.01519582,21316.0,21315.0,1.023306]
[1674011277421,0.01519582,21316.0,21315.0,1.323306]
[1674011277675,0.01519582,21316.0,21315.0,1.023306]
[1674011277944,0.01519582,21316.0,21315.0,1.69123364]
[1674011278203,0.01519582,21316.0,21315.0,2.16204959]
[1674011278739,0.01519582,21316.0,21315.0,1.86204959]
[1674011278986,0.01519582,21316.0,21315.0,2.16204959]
[1674011282591,0.01519582,21316.0,21315.0,2.17054959]
[1674011282592,0.01619234,21316.0,21315.0,2.17054959]
[1674011282860,0.01519582,21316.0,21315.0,2.62118071]
[1674011283127,0.01519582,21316.0,21315.0,2.31887002]
[1674011283403,0.01519582,21316.0,21315.0,2.31979558]
[1674011283690,0.01419582,21316.0,21315.0,2.23479558]
[1674011283955,0.01419582,21316.0,21315.0,2.32679558]
[1674011284203,0.01419582,21316.0,21315.0,2.23479558]
[1674011284728,0.01392939,21319.0,21316.0,0.15573756]
[1674011284985,0.01392939,21319.0,21317.0,2.71240595]
[1674011285250,0.01392939,21319.0,21318.0,1.13686154]
[1674011285504,0.01392939,21319.0,21318.0,1.71630112]
[1674011285765,0.01392939,21319.0,21318.0,2.07513075]
[1674011287133,0.01392939,21319.0,21318.0,2.24133075]
[1674011287393,0.01392939,21319.0,21318.0,2.14933075]
[1674011287687,0.01392939,21319.0,21318.0,2.24133075]
[1674011288710,0.01392939,21319.0,21318.0,2.14933075]
[1674011289265,0.01392939,21319.0,21318.0,2.07513075]
[1674011289790,0.01392939,21319.0,21318.0,1.95451405]
[1674011290036,0.01392939,21319.0,21318.0,1.77513075]
[1674011290349,0.01392939,21319.0,21318.0,1.86713075]
[1674011290642,0.01392939,21319.0,21318.0,1.94153075]
[1674011290900,0.01392939,21319.0,21318.0,2.01633075]
[1674011291162,0.01392939,21319.0,21318.0,1.86713075]
[1674011291686,0.01392939,21319.0,21318.0,1.030174]
[1674011292505,0.01392939,21319.0,21317.0,0.469109]
[1674011292764,0.321657,21318.0,21317.0,0.469109]
[1674011293042,0.01392939,21319.0,21317.0,0.469109]
[1674011293301,0.01392939,21319.0,21318.0,0.092]
[1674011293816,0.01392939,21319.0,21317.0,0.469109]
[1674011293817,0.33558639,21319.0,21317.0,0.469109]
[1674011294119,0.01392939,21319.0,21317.0,0.523109]
[1674011294364,0.01392939,21319.0,21317.0,0.469109]
[1674011294666,0.01392939,21319.0,21318.0,0.093]
[1674011294930,0.01392939,21319.0,21317.0,0.938218]
[1674011295191,0.01392939,21319.0,21316.0,0.94396156]
[1674011295444,0.33558639,21319.0,21316.0,0.47484656]
[1674011295791,0.15,21317.0,21316.0,0.00573756]
[1674011296043,0.545954,21317.0,21316.0,0.00573756]
[1674011296287,0.395954,21317.0,21316.0,0.08273756]
[1674011296526,0.395954,21317.0,21316.0,0.00573756]
[1674011296933,0.410954,21317.0,21316.0,0.00573756]
[1674011297449,0.425954,21317.0,21316.0,0.01173756]
[1674011297700,0.395954,21317.0,21316.0,0.00573756]
[1674011298020,0.410954,21317.0,21316.0,0.01173756]
[1674011299319,0.410954,21317.0,21314.0,0.70692229]
[1674011299896,0.321654,21316.0,21314.0,0.23776229]
[1674011300162,0.321654,21315.0,21314.0,0.23776229]
[1674011300430,0.0883,21317.0,21314.0,0.24376229]
[1674011300703,0.0743,21317.0,21314.0,0.23776229]
[1674011300960,0.335654,21316.0,21314.0,0.23776229]
[1674011301252,0.321654,21315.0,21314.0,0.23776229]
[1674011301510,0.0883,21317.0,21314.0,0.24376229]
[1674011301763,0.321654,21316.0,21314.0,0.23776229]
[1674011302024,0.0743,21317.0,21314.0,0.23776229]
[1674011302562,0.014,21317.0,21314.0,0.90366324]
[1674011302813,0.0748,21318.0,21314.0,0.70693729]
[1674011303084,0.0748,21318.0,21315.0,0.0009448]
[1674011303085,0.001,21317.0,21315.0,0.0009448]
[1674011303562,0.001,21317.0,21316.0,0.469131]
[1674011303822,0.014,21317.0,21316.0,1.41546369]
[1674011304090,0.014,21317.0,21316.0,1.73711769]
[1674011304990,0.0154981,21323.0,21316.0,2.22784364]
[1674011305251,0.0154981,21323.0,21317.0,0.99014015]
[1674011305508,0.0154981,21323.0,21319.0,0.321654]
[1674011305766,0.0154981,21323.0,21321.0,1.407063]
[1674011306025,0.0154981,21323.0,21322.0,0.321654]
[1674011306279,0.0164981,21323.0,21322.0,1.259652]
[1674011306547,0.0154981,21323.0,21322.0,1.2605987]
[1674011306796,0.0164981,21323.0,21322.0,1.259652]
[1674011307049,0.0164981,21323.0,21322.0,1.41519969]
[1674011307311,0.0174981,21323.0,21322.0,1.81585369]
[1674011307872,0.0174981,21323.0,21322.0,2.11585369]
[1674011308391,0.0174981,21323.0,21322.0,2.18995369]
[1674011308662,0.0154981,21323.0,21322.0,2.11095369]
[1674011308949,0.0164981,21323.0,21322.0,2.18995369]
[1674011309210,0.0164981,21323.0,21322.0,2.11095369]
[1674011309457,0.0174981,21323.0,21322.0,2.18995369]
[1674011310748,0.0174981,21323.0,21322.0,2.44150191]
[1674011311201,0.0174981,21323.0,21322.0,2.18995369]
[1674011312720,0.0174981,21323.0,21322.0,2.44150191]
[1674011312972,0.0174981,21323.0,21322.0,2.11585369]
[1674011313474,0.0174981,21323.0,21322.0,2.65945269]
[1674011316322,0.0174981,21323.0,21322.0,2.91100091]
[1674011316612,0.0174981,21323.0,21322.0,2.65945269]
[1674011318220,0.0154981,21323.0,21322.0,2.58045269]
[1674011318489,0.0164981,21323.0,21322.0,2.65945269]
[1674011319290,0.0164981,21323.0,21322.0,2.73375269]
[1674011319754,0.0154981,21323.0,21322.0,2.65475269]
[1674011319772,0.0154981,21323.0,21322.0,2.74575269]
[1674011320259,0.0154981,21323.0,21322.0,2.74665667]
[1674011320507,0.0154981,21323.0,21322.0,2.65565667]
[1674011320759,0.0154981,21323.0,21322.0,2.75865667]
[1674011321004,0.0154981,21323.0,21322.0,2.58135667]
[1674011321256,0.0154981,21323.0,21322.0,2.68435667]
[1674011321513,0.0154981,21323.0,21322.0,2.58135667]
[1674011321762,0.0154981,21323.0,21322.0,2.68435667]
[1674011322251,0.0154981,21323.0,21322.0,2.38435667]
[1674011322996,0.0154275,21323.0,21322.0,2.28135667]
[1674011323250,0.0154275,21323.0,21322.0,2.38435667]
[1674011323499,0.0154275,21323.0,21322.0,2.68435648]
[1674011324262,0.0154275,21323.0,21322.0,2.2058525]
[1674011324756,0.0164275,21323.0,21322.0,1.9661985]
[1674011325008,0.0154275,21323.0,21322.0,1.8841985]
[1674011325263,0.0154275,21323.0,21322.0,1.9661985]
[1674011325264,0.0164275,21323.0,21322.0,1.9661985]
[1674011325519,0.0154275,21323.0,21322.0,0.93799781]
[1674011325764,0.0164275,21323.0,21322.0,1.01999781]
[1674011326508,0.0154275,21323.0,21322.0,0.93799781]
[1674011326759,0.0154275,21323.0,21322.0,0.64784091]
[1674011327494,0.0164275,21323.0,21322.0,0.64784091]
[1674011327752,0.0154275,21323.0,21322.0,0.64784091]
[1674011328255,0.0164275,21323.0,21322.0,0.73084091]
[1674011328503,0.0154275,21323.0,21322.0,0.64784091]
[1674011328743,0.0164275,21323.0,21322.0,0.73084091]
[1674011331274,0.0114275,21323.0,21322.0,1.03084091]
[1674011331522,0.0114275,21323.0,21322.0,0.73084091]
[1674011333315,0.0114275,21323.0,21322.0,1.03084091]
[1674011333811,0.0114275,21323.0,21322.0,1.8296966]
[1674011335008,0.0114275,21323.0,21322.0,1.8246966]
[1674011336040,0.0114275,21323.0,21322.0,1.82560058]
[1674011336519,0.0114275,21323.0,21322.0,1.5246966]
[1674011336772,0.0114275,21323.0,21322.0,1.2030426]